fUST/lending_fUST_20260301
["ID","MTS","AMOUNT","RATE_DAILY","PERIOD"]
[406950492,1772338873799,-400.0,0.00012771,2]
[406950493,1772338874953,-1000.0,0.00012771,2]
[406950494,1772338877328,-1000.0,0.00012771,2]
[406950495,1772338878249,-1000.0,0.00012771,2]
[406950496,1772338879162,-1000.0,0.00012771,2]
[406950497,1772338880321,-600.0,0.00012771,2]
[406950498,1772338880343,-400.0,0.00012771,2]
[406950499,1772338881212,-201.0,0.00012771,2]
[406950500,1772338881234,-799.0,0.00012996,2]
[406950501,1772338882330,-401.0,0.00012996,2]
[406950502,1772338882352,-300.0,0.00012997,2]
[406950503,1772338882375,-299.0,0.00012997,2]
[406950504,1772338883482,-1.0,0.00012997,2]
[406950505,1772338883504,-300.0,0.00012997,2]
[406950506,1772338883526,-699.0,0.00012998,2]
[406950507,1772338884527,-1000.0,0.00012998,2]
[406950508,1772338908087,-1000.0,0.00012771,2]
[406950509,1772338909013,-1000.0,0.00012771,2]
[406950510,1772338909914,-1000.0,0.00012771,2]
[406950511,1772338911098,-1000.0,0.00012771,2]
[406950512,1772338912051,-1000.0,0.00012771,2]
[406950513,1772338913061,-1000.0,0.000129,2]
[406950514,1772338913882,-102.16153047,0.000129,2]
[406950515,1772338913904,-897.83846953,0.00012998,2]
[406950516,1772338914756,-1000.0,0.00012998,2]
[406950517,1772338915638,-1000.0,0.00012998,2]
[406950518,1772338916716,-1000.0,0.00012998,2]
[406950519,1772339032547,-1000.0,0.00012868,2]
[406950520,1772339034586,-1000.0,0.00012868,2]
[406950521,1772339035472,-1000.0,0.00012868,2]
[406950522,1772339036423,-1000.0,0.00012868,2]
[406950523,1772339037331,-1000.0,0.00012868,2]
[406950524,1772339056180,-1000.0,0.00012768,2]
[406950525,1772339064490,-1000.0,0.00012768,2]
[406950526,1772339078811,-1000.0,0.00012768,2]
[406950527,1772339079777,-1000.0,0.00012768,2]
[406950528,1772339080676,-1000.0,0.00012768,2]
[406950529,1772339170858,-665.82720525,0.00012768,2]
[406950530,1772339170881,-208.88809555,0.00012897,2]
[406950531,1772339170907,-125.2846992,0.00012933,2]
[406950532,1772339171511,-24.7153008,0.00012933,2]
[406950533,1772339171536,-200.0,0.00012986,2]
[406950534,1772339171560,-300.0,0.00012996,2]
[406950535,1772339171583,-475.2846992,0.00012996,2]
[406950536,1772339172192,-724.7153008,0.00012996,2]
[406950537,1772339172216,-275.2846992,0.00012996,2]
[406950538,1772339173199,-24.7153008,0.00012996,2]
[406950539,1772339173221,-239.0,0.00012997,2]
[406950540,1772339173244,-500.0,0.00012997,2]
[406950541,1772339173267,-236.2846992,0.00012997,2]
[406950542,1772339174009,-263.7153008,0.00012997,2]
[406950543,1772339174031,-500.0,0.00012997,2]
[406950544,1772339174055,-236.2846992,0.00012997,2]
[406950545,1772339174968,-186.76097987,0.00012997,2]
[406950546,1772339175005,-813.23902013,0.00012998,2]
[406950547,1772339175792,-1000.0,0.00012998,2]
[406950548,1772339176730,-1000.0,0.00012998,2]
[406950549,1772339177558,-1000.0,0.00012998,2]
[406950550,1772339178572,-1000.0,0.00012998,2]
[406950551,1772339182610,-964.39133917,0.000129,2]
[406950552,1772339182634,-35.60866083,0.00012998,2]
[406950553,1772339183516,-1000.0,0.00012998,2]
[406950554,1772339184363,-1000.0,0.00012998,2]
[406950555,1772339185277,-1000.0,0.00012998,2]
[406950556,1772339186431,-1000.0,0.00012998,2]
[406950557,1772339187242,-1000.0,0.00012998,2]
[406950558,1772339188103,-1000.0,0.00012998,2]
[406950559,1772339188973,-1000.0,0.00012998,2]
[406950560,1772339190003,-1000.0,0.00012998,2]
[406950561,1772339190966,-1000.0,0.00012998,2]
[406950562,1772339196575,-1000.0,0.00012998,2]
[406950563,1772339197517,-1000.0,0.00012998,2]
[406950564,1772339198470,-1000.0,0.00012998,2]
[406950565,1772339199655,-1000.0,0.00012998,2]
[406950566,1772339207960,-213.67174212,0.00012999,2]
[406950567,1772339207983,-786.32825788,0.00013,2]
[406950568,1772339209184,-1000.0,0.00013,2]
[406950569,1772339210264,-1000.0,0.00013,2]
[406950570,1772339211448,-1000.0,0.00013,2]
[406950571,1772339215552,-500.0,0.00013,2]
[406950628,1772339431972,-300.0,0.00012997,2]
[406950630,1772339431982,-300.0,0.00012997,2]
[406950632,1772339431992,-300.0,0.00012997,2]
[406950634,1772339432001,-604.0,0.00012997,2]
[406950636,1772339432010,-1200.0,0.00012997,2]
[406950638,1772339432020,-500.0,0.00012997,2]
[406950640,1772339432030,-500.0,0.00012997,2]
[406950642,1772339432039,-651.89391797,0.00012997,2]
[406950644,1772339432048,-500.0,0.00012997,2]
[406950646,1772339432058,-500.0,0.00012997,2]
[406950648,1772339432067,-500.0,0.00012997,2]
[406950650,1772339432076,-500.0,0.00012997,2]
[406950652,1772339432086,-500.0,0.00012997,2]
[406950654,1772339432095,-500.0,0.00012997,2]
[406950656,1772339432104,-500.0,0.00012997,2]
[406950658,1772339432114,-500.0,0.00012997,2]
[406950660,1772339432123,-307.82478467,0.00012997,2]
[406950663,1772339432133,-500.0,0.00012997,2]
[406950664,1772339432142,-500.0,0.00012997,2]
[406950666,1772339432151,-500.0,0.00012997,2]
[406950668,1772339432160,-500.0,0.00012997,2]
[406950671,1772339432170,-500.0,0.00012997,2]
[406950673,1772339432180,-500.0,0.00012997,2]
[406950675,1772339432189,-2765.83201868,0.00012998,2]
[406950753,1772339440549,-500.0,0.00012997,2]
[406950754,1772339440559,-500.0,0.00012997,2]
[406950755,1772339440568,-11.53783222,0.00012997,2]
[406950756,1772339442142,-497.96706164,0.00012997,2]
[406950757,1772339442152,-292.23170941,0.00012997,2]
[406950783,1772339446635,-207.76829059,0.00012997,2]
[406950784,1772339446645,-177.48727454,0.00012997,2]
[406950785,1772339446654,-500.0,0.00012997,2]
[406950786,1772339446663,-500.0,0.00012997,2]
[406950787,1772339446673,-500.0,0.00012997,2]
[406950788,1772339446683,-500.0,0.00012997,2]
[406950789,1772339446693,-500.0,0.00012997,2]
[406950790,1772339446703,-500.0,0.00012997,2]
[406950792,1772339446712,-500.0,0.00012997,2]
[406950793,1772339446721,-500.0,0.00012997,2]
[406950794,1772339446730,-500.0,0.00012997,2]
[406950795,1772339446739,-500.0,0.00012997,2]
[406950796,1772339446749,-500.0,0.00012997,2]
[406950797,1772339446758,-500.0,0.00012997,2]
[406950798,1772339446768,-500.0,0.00012997,2]
[406950799,1772339446777,-500.0,0.00012997,2]
[406950800,1772339446789,-500.0,0.00012997,2]
[406950801,1772339446801,-500.0,0.00012997,2]
[406950802,1772339446811,-36.86017478,0.00012997,2]
[406950803,1772339446823,-463.13982522,0.00012997,2]
[406950804,1772339446834,-500.0,0.00012997,2]
[406950805,1772339446844,-500.0,0.00012997,2]
[406950806,1772339446853,-500.0,0.00012997,2]
[406950807,1772339446863,-500.0,0.00012997,2]
[406950808,1772339446872,-500.0,0.00012997,2]
[406950809,1772339446882,-500.0,0.00012997,2]
[406950810,1772339446892,-473.77977073,0.00012997,2]
[406950811,1772339598159,222.7,0.000158,120]
[406950823,1772339933323,6962.6,0.0001,10]
[406950825,1772340244291,497.77158716,0.0001001,2]
[406950827,1772340315014,230.1,0.000158,120]
[406950828,1772340421580,409.32092942,0.0001001,2]
[406950854,1772340632051,-300.0,0.00010323,2]
[406950857,1772340632062,-281.51316307,0.00010323,2]
[406950859,1772340632072,-565.0,0.00010323,2]
[406950861,1772340632081,-150.0,0.00010401,2]
[406950863,1772340632091,-241.1623025,0.0001041,2]
[406950865,1772340632101,-500.0,0.000108,2]
[406950867,1772340632111,-367.1719687,0.00011,2]
[406950964,1772340638183,-1341.25548051,0.00011,2]
[406951025,1772340646208,-386.24439122,0.00011,2]
[406951026,1772340646218,-200.0,0.00011034,2]
[406951027,1772340646227,-671.18196541,0.00011102,2]
[406951028,1772340646239,-528.81803459,0.00011102,2]
[406951029,1772340646248,-177.0,0.00011103,2]
[406951030,1772340646259,-300.0,0.00011103,2]
[406951031,1772340646269,-300.0,0.00011103,2]
[406951032,1772340646279,-300.0,0.00011103,2]
[406951033,1772340646289,-300.0,0.00011103,2]
[406951034,1772340646298,-8717.5257975,0.00011104,2]
[406951035,1772340646308,-7807.10063807,0.00011212,2]
[406951038,1772340942134,210.74,0.000158,120]
[406951048,1772341356487,236.83969918,0.0001,2]
[406951049,1772341440593,1016.14640754,0.0001001,2]
[406951063,1772341554845,223.17262776,9.671e-05,2]
[406951186,1772341838390,-561.0,0.00010044,2]
[406951188,1772341838399,-150.0,0.00010044,2]
[406951189,1772341838409,-2412.7036845,0.00010044,2]
[406951190,1772341838418,-430.70244017,0.00010235,2]
[406951191,1772341838428,-300.0,0.00010714,2]
[406951192,1772341838438,-300.0,0.00010714,2]
[406951193,1772341838447,-300.0,0.00010714,2]
[406951194,1772341838456,-300.0,0.00010714,2]
[406951195,1772341838466,-1200.0,0.00010715,2]
[406951196,1772341838480,-500.0,0.00010716,2]
[406951197,1772341838489,-500.0,0.00010716,2]
[406951198,1772341838499,-500.0,0.00010716,2]
[406951199,1772341838508,-500.0,0.00010716,2]
[406951200,1772341838520,-500.0,0.00010716,2]
[406951201,1772341838531,-500.0,0.00010716,2]
[406951202,1772341838542,-500.0,0.00010716,2]
[406951203,1772341838554,-500.0,0.00010716,2]
[406951204,1772341838564,-500.0,0.00010716,2]
[406951205,1772341838575,-5490.02482875,0.00010716,2]
[406951206,1772341838584,-2493.62412156,0.00011037,2]
[406951207,1772341838594,-500.0,0.00011142,2]
[406951208,1772341838604,-500.0,0.00011142,2]
[406951209,1772341838614,-500.0,0.00011142,2]
[406951210,1772341838623,-500.0,0.00011142,2]
[406951211,1772341838632,-500.0,0.00011142,2]
[406951212,1772341838641,-500.0,0.00011142,2]
[406951213,1772341838650,-500.0,0.00011142,2]
[406951214,1772341838659,-500.0,0.00011142,2]
[406951215,1772341838887,-500.0,0.00011142,2]
[406951216,1772341838902,-500.0,0.00011142,2]
[406951217,1772341838911,-500.0,0.00011142,2]
[406951218,1772341838921,-500.0,0.00011142,2]
[406951219,1772341838930,-500.0,0.00011142,2]
[406951220,1772341838939,-500.0,0.00011142,2]
[406951221,1772341838948,-363.87474949,0.00011142,2]
[406951222,1772341838958,-500.0,0.00011142,2]
[406951223,1772341838967,-500.0,0.00011142,2]
[406951224,1772341838976,-500.0,0.00011142,2]
[406951225,1772341838986,-500.0,0.00011142,2]
[406951226,1772341838995,-500.0,0.00011142,2]
[406951227,1772341839004,-500.0,0.00011142,2]
[406951228,1772341839013,-488.35091199,0.00011142,2]
[406951229,1772341839023,-500.0,0.00011142,2]
[406951230,1772341839032,-500.0,0.00011142,2]
[406951231,1772341839041,-500.0,0.00011142,2]
[406951232,1772341839050,-200.95048939,0.00011142,2]
[406951233,1772341839059,-500.0,0.00011142,2]
[406951234,1772341839069,-500.0,0.00011142,2]
[406951235,1772341839079,-500.0,0.00011142,2]
[406951236,1772341839088,-500.0,0.00011142,2]
[406951237,1772341839097,-500.0,0.00011142,2]
[406951238,1772341839106,-500.0,0.00011142,2]
[406951239,1772341839116,-500.0,0.00011142,2]
[406951240,1772341839126,-500.0,0.00011142,2]
[406951241,1772341839136,-500.0,0.00011142,2]
[406951242,1772341839146,-500.0,0.00011142,2]
[406951243,1772341839155,-500.0,0.00011142,2]
[406951244,1772341839165,-500.0,0.00011142,2]
[406951245,1772341839175,-500.0,0.00011142,2]
[406951246,1772341839184,-500.0,0.00011142,2]
[406951247,1772341839194,-500.0,0.00011142,2]
[406951248,1772341839204,-500.0,0.00011142,2]
[406951249,1772341839213,-500.0,0.00011142,2]
[406951250,1772341839223,-500.0,0.00011142,2]
[406951251,1772341839233,-500.0,0.00011142,2]
[406951252,1772341839242,-500.0,0.00011142,2]
[406951253,1772341839254,-500.0,0.00011142,2]
[406951254,1772341839263,-500.0,0.00011142,2]
[406951255,1772341839273,-500.0,0.00011142,2]
[406951256,1772341839283,-500.0,0.00011142,2]
[406951257,1772341839293,-510.71768074,0.00011142,2]
[406951258,1772341839302,-500.0,0.00011142,2]
[406951259,1772341839312,-500.0,0.00011142,2]
[406951260,1772341839322,-500.0,0.00011142,2]
[406951261,1772341839331,-500.0,0.00011142,2]
[406951262,1772341839340,-500.0,0.00011142,2]
[406951263,1772341839350,-500.0,0.00011142,2]
[406951264,1772341839361,-500.0,0.00011142,2]
[406951265,1772341839370,-500.0,0.00011142,2]
[406951266,1772341839382,-500.0,0.00011142,2]
[406951267,1772341839392,-500.0,0.00011142,2]
[406951268,1772341839404,-500.0,0.00011142,2]
[406951269,1772341839413,-500.0,0.00011142,2]
[406951270,1772341839423,-500.0,0.00011142,2]
[406951271,1772341839432,-500.0,0.00011142,2]
[406951272,1772341839442,-500.0,0.00011142,2]
[406951273,1772341839451,-500.0,0.00011142,2]
[406951274,1772341839460,-500.0,0.00011142,2]
[406951275,1772341839476,-500.0,0.00011142,2]
[406951276,1772341839486,-500.0,0.00011142,2]
[406951277,1772341839496,-500.0,0.00011142,2]
[406951278,1772341839506,-500.0,0.00011142,2]
[406951279,1772341839518,-500.0,0.00011142,2]
[406951280,1772341839527,-500.0,0.00011142,2]
[406951281,1772341839538,-500.0,0.00011142,2]
[406951282,1772341839546,-500.0,0.00011142,2]
[406951283,1772341839556,-500.0,0.00011142,2]
[406951284,1772341839565,-570.90247712,0.00011142,2]
[406951285,1772341839574,-500.0,0.00011142,2]
[406951286,1772341839584,-419.16410879,0.00011142,2]
[406951287,1772341839594,-500.0,0.00011142,2]
[406951288,1772341839603,-500.0,0.00011142,2]
[406951289,1772341839613,-500.0,0.00011142,2]
[406951290,1772341839622,-500.0,0.00011142,2]
[406951291,1772341839631,-500.0,0.00011142,2]
[406951292,1772341839643,-500.0,0.00011142,2]
[406951293,1772341839654,-500.0,0.00011142,2]
[406951294,1772341839664,-500.0,0.00011142,2]
[406951295,1772341839673,-500.0,0.00011142,2]
[406951296,1772341839683,-500.0,0.00011142,2]
[406951297,1772341839693,-500.0,0.00011142,2]
[406951298,1772341839703,-500.0,0.00011142,2]
[406951299,1772341839713,-433.14504306,0.00011142,2]
[406951301,1772341840064,-66.85495694,0.00011142,2]
[406951302,1772341840074,-500.0,0.00011142,2]
[406951303,1772341840084,-500.0,0.00011142,2]
[406951304,1772341840094,-500.0,0.00011142,2]
[406951305,1772341840103,-433.14504306,0.00011142,2]
[406951306,1772341840116,-216.85495694,0.00011142,2]
[406951307,1772341840126,-500.0,0.00011142,2]
[406951308,1772341840136,-500.0,0.00011142,2]
[406951309,1772341840146,-500.0,0.00011142,2]
[406951310,1772341840156,-496.0058263,0.00011143,2]
[406951311,1772341840167,-892.81048734,0.00011143,2]
[406951312,1772341840176,-1587.21864416,0.00011143,2]
[406951313,1772341840186,-2480.0291315,0.00011143,2]
[406951314,1772341840195,-3571.24194936,0.00011143,2]
[406951315,1772341840205,-446.57382062,0.00011209,2]
[406951316,1772341840214,-4924.8794731,0.00011212,2]
[406951317,1772341840223,-293.4816536,0.00011259,2]
[406951318,1772341840233,-1984.555871,0.00011278,2]
[406951320,1772341840243,-500.0,0.00011485,2]
[406951322,1772341840254,-216.9936442,0.00011575,2]
[406951324,1772341840263,-1984.555871,0.00011753,2]
[406951326,1772341840274,-507.2924622,0.00011759,2]
[406951328,1772341840285,-368.0,0.00011777,2]
[406951330,1772341840296,-420.0,0.00011777,2]
[406951332,1772341840306,-420.0,0.00011777,2]
[406951334,1772341840316,-420.0,0.00011777,2]
[406951336,1772341840327,-9000.0,0.00011781,2]
[406951338,1772341840337,-9000.0,0.00011781,2]
[406951340,1772341840348,-943.03175515,0.00011781,2]
[406951342,1772341840358,-24409.2865893,0.00011782,2]
[406951344,1772341840367,-4316.7395847,0.00011782,2]
[406951346,1772341840376,-1970.1851679,0.00011782,2]
[406951348,1772341840385,-9561.5847445,0.00011782,2]
[406951350,1772341840394,-1680.0,0.00011786,2]
[406951352,1772341840404,-704.01572223,0.00011829,2]
[406951353,1772341840413,-672.82292383,0.00011868,2]
[406951355,1772341840423,-448.57,0.00011993,2]
[406951356,1772341840432,-177.0,0.00012044,2]
[406951357,1772341840443,-520.902024,0.00012093,2]
[406951358,1772341840452,-151.0,0.00012199,2]
[406951359,1772341840461,-156.552823,0.00012199,2]
[406951360,1772341840472,-1984.555871,0.00012228,2]
[406951361,1772341840488,-2068.24,0.00012329,2]
[406951362,1772341840498,-1723.53,0.00012329,2]
[406951363,1772341840508,-1436.28,0.00012329,2]
[406951364,1772341840518,-1196.9,0.00012329,2]
[406951365,1772341840528,-997.42,0.00012329,2]
[406951367,1772341840538,-831.18,0.00012329,2]
[406951369,1772341840552,-692.65,0.00012329,2]
[406951370,1772341840561,-577.21,0.00012329,2]
[406951371,1772341840571,-481.01,0.00012329,2]
[406951372,1772341840580,-400.84,0.00012329,2]
[406951373,1772341840589,-334.03,0.00012329,2]
[406951374,1772341840599,-278.36,0.00012329,2]
[406951375,1772341840608,-231.97,0.00012329,2]
[406951376,1772341840617,-193.3,0.00012329,2]
[406951377,1772341840626,-161.09,0.00012329,2]
[406951378,1772341840635,-805.46,0.00012329,2]
[406951379,1772341840645,-745.93110896,0.000125,2]
[406951380,1772341840655,-180.84216016,0.00012603,2]
[406951381,1772341840664,-1984.555871,0.00012703,2]
[406951382,1772341840673,-188.887,0.00012871,2]
[406951383,1772341840683,-196.69119585,0.00012873,4]
[406951384,1772341840692,-843.84242173,0.000129,2]
[406951385,1772341840701,-587.0,0.00012945,2]
[406951386,1772341840711,-587.0,0.00012945,2]
[406951387,1772341840720,-587.0,0.00012945,2]
[406951388,1772341840729,-475.0,0.00012965,2]
[406951389,1772341840744,-483.54012645,0.00012978,2]
[406951390,1772341840754,-483.54012646,0.00012978,2]
[406951391,1772341840763,-562.54950292,0.00012997,2]
[406951392,1772341840773,-314.96170252,0.00012997,2]
[406951393,1772341840783,-492.795647,0.00012997,2]
[406951394,1772341840792,-887.0321646,0.00012997,2]
[406951395,1772341840802,-202.75488601,0.00012997,2]
[406951396,1772341840811,-1012.58910526,0.00012997,2]
[406951397,1772341840820,-1800.15840936,0.00012997,2]
[406951398,1772341840830,-127594.1737395,0.00013,2]
[406951399,1772341840840,-1048.17786636,0.00013,2]
[406951400,1772341840850,-290.87597804,0.00013003,2]
[406951401,1772341840859,-1576.9460704,0.00013098,2]
[406951402,1772341840868,-359.59627522,0.00013128,2]
[406951403,1772341840878,-5088.11040351,0.00013167,2]
[406951404,1772341840887,-1984.555871,0.00013177,2]
[406951405,1772341840897,-600.0,0.00013258,2]
[406951406,1772341840906,-181.71574215,0.00013273,2]
[406951407,1772341840915,-500.0,0.00013273,2]
[406951408,1772341840924,-500.0,0.00013273,2]
[406951409,1772341840934,-502.15693638,0.00013273,2]
[406951410,1772341840944,-500.0,0.00013273,2]
[406951411,1772341840953,-500.0,0.00013273,2]
[406951412,1772341840963,-186.72561755,0.00013273,2]
[406951413,1772341840972,-212.09178189,0.00013273,2]
[406951414,1772341840982,-502.56058607,0.00013273,2]
[406951415,1772341840992,-263.12418822,0.00013273,2]
[406951416,1772341841001,-500.60505034,0.00013273,2]
[406951417,1772341841011,-505.0092647,0.00013273,2]
[406951418,1772341841020,-500.0,0.00013273,2]
[406951419,1772341841029,-527.71378308,0.00013273,2]
[406951420,1772341841038,-500.0,0.00013273,2]
[406951421,1772341841048,-500.0,0.00013273,2]
[406951422,1772341841057,-501.43339615,0.00013273,2]
[406951423,1772341841067,-270.52056815,0.00013273,2]
[406951424,1772341841076,-500.18521824,0.00013273,2]
[406951425,1772341841085,-500.0,0.00013273,2]
[406951426,1772341841095,-5446.4480257,0.00013308,2]
[406951427,1772341841104,-2133.4779353,0.00013308,2]
[406951428,1772341841112,-2812.74751462,0.00013319,2]
[406951429,1772341841121,-3007.83769682,0.00013328,4]
[406951430,1772341841130,-2463.978235,0.00013341,2]
[406951431,1772341841140,-500.0,0.00013347,2]
[406951432,1772341841149,-843.84242173,0.00013437,2]
[406951433,1772341841158,-3548.1286584,0.00013585,2]
[406951434,1772341841168,-205.67134716,0.00013634,2]
[406951435,1772341841176,-1215.2668202,0.00013648,2]
[406951436,1772341841186,-476.0432733,0.00013648,2]
[406951437,1772341841196,-4046.30606463,0.0001365,2]
[406951438,1772341841207,-1984.555871,0.00013652,2]
[406951439,1772341841216,-300.0,0.00013673,2]
[406951440,1772341841226,-500.0,0.00013698,2]
[406951441,1772341841235,-500.0,0.00013698,2]
[406951442,1772341841245,-500.0,0.00013698,2]
[406951443,1772341841255,-500.0,0.00013698,2]
[406951444,1772341841263,-538.89383357,0.00013698,2]
[406951445,1772341841274,-632.42,0.00013698,2]
[406951446,1772341841284,-632.42,0.00013698,2]
[406951447,1772341841293,-632.42,0.00013698,2]
[406951448,1772341841302,-632.42,0.00013698,2]
[406951449,1772341841311,-632.42,0.00013698,2]
[406951450,1772341841320,-632.42,0.00013698,2]
[406951451,1772341841330,-632.42,0.00013698,2]
[406951452,1772341841339,-632.42,0.00013698,2]
[406951453,1772341841350,-632.42,0.00013698,2]
[406951454,1772341841360,-632.42,0.00013698,2]
[406951455,1772341841369,-632.42,0.00013698,2]
[406951456,1772341841378,-632.42,0.00013698,2]
[406951457,1772341841387,-632.42,0.00013698,2]
[406951458,1772341841396,-568.11460388,0.00013698,2]
[406951459,1772341841405,-500.0,0.00013698,2]
[406951460,1772341841414,-500.0,0.00013698,2]
[406951461,1772341841424,-500.0,0.00013698,2]
[406951462,1772341841433,-500.0,0.00013698,2]
[406951463,1772341841442,-500.0,0.00013698,2]
[406951464,1772341841451,-500.0,0.00013698,2]
[406951465,1772341841460,-500.0,0.00013698,2]
[406951466,1772341841476,-500.0,0.00013698,2]
[406951467,1772341841486,-552.11712374,0.00013698,2]
[406951468,1772341841495,-500.0,0.00013698,2]
[406951469,1772341841505,-500.0,0.00013698,2]
[406951470,1772341841516,-500.0,0.00013698,2]
[406951471,1772341841525,-500.0,0.00013698,2]
[406951472,1772341841535,-370.079007,0.00013698,2]
[406951473,1772341841545,-510.50773043,0.00013698,2]
[406951474,1772341841554,-500.0,0.00013698,2]
[406951475,1772341841563,-500.0,0.00013698,2]
[406951476,1772341841572,-500.0,0.00013698,2]
[406951477,1772341841581,-500.0,0.00013698,2]
[406951478,1772341841590,-501.01,0.00013698,2]
[406951479,1772341841599,-500.0,0.00013698,2]
[406951480,1772341841609,-500.0,0.00013698,2]
[406951481,1772341841618,-500.0,0.00013698,2]
[406951482,1772341841627,-500.0,0.00013698,2]
[406951483,1772341841636,-500.0,0.00013698,2]
[406951484,1772341841647,-500.0,0.00013698,2]
[406951485,1772341841662,-500.0,0.00013698,2]
[406951486,1772341841672,-500.0,0.00013698,2]
[406951487,1772341841682,-500.0,0.00013698,2]
[406951488,1772341841691,-500.0,0.00013698,2]
[406951489,1772341841701,-500.0,0.00013698,2]
[406951490,1772341841710,-500.0,0.00013698,2]
[406951491,1772341841720,-500.0,0.00013698,2]
[406951492,1772341841729,-500.0,0.00013698,2]
[406951493,1772341841739,-500.0,0.00013698,2]
[406951494,1772341841748,-500.0,0.00013698,2]
[406951495,1772341841758,-500.0,0.00013698,2]
[406951496,1772341841767,-500.0,0.00013698,2]
[406951497,1772341841776,-500.0,0.00013698,2]
[406951498,1772341841786,-500.0,0.00013698,2]
[406951499,1772341841795,-500.0,0.00013698,2]
[406951500,1772341841804,-500.0,0.00013698,2]
[406951501,1772341841814,-500.0,0.00013698,2]
[406951502,1772341841823,-500.0,0.00013698,2]
[406951503,1772341841833,-500.0,0.00013698,2]
[406951504,1772341841842,-500.0,0.00013698,2]
[406951505,1772341841851,-500.0,0.00013698,2]
[406951506,1772341841861,-500.0,0.00013698,2]
[406951507,1772341841870,-500.0,0.00013698,2]
[406951508,1772341841880,-500.0,0.00013698,2]
[406951509,1772341841889,-500.0,0.00013698,2]
[406951510,1772341841899,-500.0,0.00013698,2]
[406951511,1772341841907,-501.84337122,0.00013698,2]
[406951512,1772341841917,-500.0,0.00013698,2]
[406951513,1772341841928,-500.0,0.00013698,2]
[406951514,1772341841937,-500.0,0.00013698,2]
[406951515,1772341841947,-500.0,0.00013698,2]
[406951516,1772341841958,-500.0,0.00013698,2]
[406951517,1772341841968,-500.0,0.00013698,2]
[406951518,1772341841977,-500.0,0.00013698,2]
[406951519,1772341841988,-500.0,0.00013698,2]
[406951520,1772341841998,-500.0,0.00013698,2]
[406951521,1772341842007,-500.0,0.00013698,2]
[406951522,1772341842224,-500.0,0.00013698,2]
[406951523,1772341842235,-500.0,0.00013698,2]
[406951524,1772341842244,-500.0,0.00013698,2]
[406951525,1772341842254,-500.0,0.00013698,2]
[406951526,1772341842265,-480.31574603,0.00013698,2]
[406951527,1772341842275,-248.98389049,0.00013698,2]
[406951528,1772341842285,-500.0,0.00013698,2]
[406951529,1772341842294,-507.97378353,0.00013698,2]
[406951530,1772341842303,-500.0,0.00013698,2]
[406951531,1772341842312,-500.0,0.00013698,2]
[406951532,1772341842321,-500.0,0.00013698,2]
[406951533,1772341842331,-500.0,0.00013698,2]
[406951534,1772341842340,-500.0,0.00013698,2]
[406951535,1772341842349,-500.0,0.00013698,2]
[406951536,1772341842359,-500.0,0.00013698,2]
[406951537,1772341842368,-500.0,0.00013698,2]
[406951538,1772341842378,-415.41685383,0.00013698,2]
[406951539,1772341842387,-500.0,0.00013698,2]
[406951540,1772341842396,-500.0,0.00013698,2]
[406951541,1772341842406,-500.0,0.00013698,2]
[406951542,1772341842417,-500.0,0.00013698,2]
[406951543,1772341842426,-500.0,0.00013698,2]